Cogmind - Beta 13 @@@ ROGUE MODE // 2024.04.21 @ 23:01:03 Player: Fiore Result: Destroyed by G-34 Mercenary with Small Laser Performance ------------- Evolutions (0) 0 Regions Visited (1) 200 Robots Destroyed (5) 25 Value Destroyed (86) 86 Prototype IDs (0) 0 Alien Tech Used (0) 0 Bonus (0) 0 TOTAL SCORE: 311 Bonus ------- None Cogmind --------- Core Integrity 0/250 Matter 274/450 Energy 100/100 System Corruption 0% Temperature Cool (6) Movement Core (50) Location -10/Materials Parts ------- > --- POWER (1) -------- (None) > --- PROPULSION (2) --- (None) > --- UTILITY (2) ------ Large Matter Pod > --- WEAPON (2) ------- (None) > --- INVENTORY (5) ---- (None) Peak State ------------ > --- POWER ------------ Light Ion Engine > --- PROPULSION ------- Aluminum Leg Aluminum Leg > --- UTILITY ---------- (None) > --- WEAPON ----------- Medium Laser Assault Rifle > --- INVENTORY -------- Wheel Wheel [Rating: 5] Favorites ----------- Power Light Ion Engine Engine Light Ion Engine Propulsion Aluminum Leg Leg Aluminum Leg Wheel Wheel Utility Large Matter Pod Storage Large Matter Pod Weapon Assault Rifle Energy Gun Medium Laser Ballistic Gun Assault Rifle Build | -11 -10 ------- Run | Yrd Mat Slots Evolved . | . . Power . | . . Propulsion . | . . Utility . | . . Weapon . | . . Parts Attached 9 | 5 4 Power 2 | 1 1 Engine 2 | 1 1 Core . | . . Reactor . | . . Propulsion 4 | 2 2 Treads . | . . Leg 2 | 2 . Wheel 2 | . 2 Hover . | . . Flight . | . . Utility 1 | . 1 Device . | . . Storage 1 | . 1 Processor . | . . Hackware . | . . Protection . | . . Artifact . | . . Weapon 2 | 2 . Energy Gun 1 | 1 . Energy Cannon . | . . Ballistic Gun 1 | 1 . Ballistic Cannon . | . . Launcher . | . . Special Weapon . | . . Impact Weapon . | . . Slashing Weapon . | . . Piercing Weapon . | . . Special Melee Weapon . | . . Unidentified Prototypes . | . . Parts Lost 8 | . 8 Power 2 | . 2 Propulsion 4 | . 4 Utility . | . . Weapon 2 | . 2 Highest Loss Streak 5 | . 5 To Critical Strikes . | . . Average Slot Usage (%) 50 | . 50 Engine 5 | . 5 Leg 12 | . 12 Wheel 1 | . 1 Storage 5 | . 5 Energy Gun 11 | . 11 Ballistic Gun 12 | . 12 Naked Turns . | . . Heaviest Build 7 | 7 7 Greatest Support 20 | 20 20 Greatest Overweight (x) 2 | . 2 Average Overweight (x) . | . . Largest Inventory Capacity 5 | 5 5 Average Capacity 5 | 5 5 Most Carried 4 | 4 3 Average Carried 1 | 1 1 Final Capacity 5 | 5 5 Final Carried 2 | 2 . Class Distribution -------------------- 100% | Mutant Dominant Class ---------------- Mutant | -10/Materials Resources | -11 -10 ----------- Run | Yrd Mat Matter Collected 305 | 240 65 Remotely . | . . Salvage Created 137 | 72 65 Parts 11 | 10 1 Haulers Intercepted . | . . Recyclers Shooed . | . . Parts Field Recycled . | . . Retrieved Matter . | . . Parts Self-Destructed . | . . Prevented . | . . Kills | -11 -10 ------- Run | Yrd Mat Combat Hostiles Destroyed 3 | 1 2 Guns 3 | 1 2 Classes Destroyed 4 | 3 1 Worker 1 | 1 . Tunneler 1 | 1 . Swarmer 1 | . 1 Grunt 2 | 1 1 Best Kill Streak 2 | 2 1 Combat Bots Only 1 | 1 1 Max Kills in Single Turn 1 | 1 1 Gunslinging . | . . Exploded . | . . Melee . | . . Uniques/NPCs Destroyed . | . . Combat | -11 -10 -------- Run | Yrd Mat Hostile Shots Fired 108 | 4 104 Missed 29 | . 29 Damage Taken 808 | 43 765 Core 251 | 10 241 Absorbed by Shields . | . . Core Remaining (%) 96 | 96 . Volleys Fired 27 | 6 21 Largest 2 | 2 2 Hottest 70 | 70 70 Shots Fired 50 | 12 38 Gun 50 | 12 38 Cannon . | . . Launcher . | . . Special . | . . Kinetic 27 | 6 21 Thermal 23 | 6 17 Explosive . | . . Electromagnetic . | . . Robot Hit Streak 3 | 3 3 Robot Miss Streak 3 | 3 3 Penetration Max . | . . Secondary Targets 1 | . 1 Max Gunslinging Chain 1 | . 1 Shots Hit Robots 20 | 6 14 Core Hits 7 | 4 3 Critical Kills . | . . Critical Parts Destroyed . | . . Critical Strikes 1 | . 1 Burn 1 | . 1 Melee Attacks . | . . Impact . | . . Slashing . | . . Piercing . | . . Sneak Attacks . | . . Combat Hostiles . | . . Follow-up Attacks . | . . Damage Inflicted 261 | 76 185 Guns 261 | 76 185 Cannons . | . . Explosions . | . . Melee . | . . Ramming . | . . Kinetic 124 | 39 85 Thermal 137 | 37 100 Explosive . | . . Electromagnetic . | . . Impact . | . . Slashing . | . . Piercing . | . . Highest Corruption . | . . Average Corruption . | . . Corruption Purged . | . . Corruption Blocked . | . . Overload Shots . | . . Overflow Damage . | . . Projectiles . | . . Explosions . | . . Melee . | . . Knockbacks . | . . Impact . | . . Kinetic . | . . Secondary . | . . Self-Inflicted Damage . | . . Shots . | . . Rammed . | . . Targets Rammed . | . . Kicked . | . . Crushed . | . . Highest Temperature 150 | 60 150 Average Temperature 56 | 28 67 Received Heat Transfer 318 | 24 294 Siege Activations . | . . Robots Corrupted . | . . Combat Hostiles . | . . Parts Fried . | . . Impact Corruptions . | . . Robots Melted . | . . Combat Hostiles . | . . Parts Melted 1 | . 1 Heat Transferred 481 | 111 370 Parts Sabotaged . | . . Parts Stolen . | . . Parts Stripped . | . . Power Chain Reactions . | . . Alert | -11 -10 ------- Run | Yrd Mat Peak Influence 140 | 30 140 Initial 19 | . 19 Average 36 | 4 50 Maximum Alert Level . | . . Low Security (%) 100 | 100 100 Level 1 . | . . Level 2 . | . . Level 3 . | . . Level 4 . | . . Level 5 . | . . High Security . | . . Max Security . | . . Squads Dispatched 1 | . 1 Investigation . | . . Extermination . | . . Reinforcement 1 | . 1 Assault . | . . Garrison . | . . Intercept . | . . Searches Triggered . | . . Construction Impeded . | . . Haulers Reinforced . | . . Active Scanning Responses . | . . Cargo Convoy Interrupts . | . . Stealth | -11 -10 --------- Run | Yrd Mat Distress Signals . | . . Communications Jammed . | . . Distress Signals . | . . Times Spotted 15 | 1 14 Peak Tracking Total 6 | 1 6 Tactical Retreats 3 | . 3 Traps | -11 -10 ------- Run | Yrd Mat Traps Triggered . | . . Indirectly . | . . Trap Hack Attempts . | . . Triggered . | . . Disarmed . | . . Reprogrammed . | . . Reused . | . . Traps Extracted . | . . Installed . | . . Triggered . | . . Machines | -11 -10 ---------- Run | Yrd Mat Machines Disabled . | . . Max in Single Turn . | . . Machines Repaired . | . . Machines Dismantled . | . . Machines Sabotaged . | . . Overloaded Fab Kills . | . . Hacking | -11 -10 --------- Run | Yrd Mat Machines Accessed . | . . Terminals . | . . Fabricators . | . . Repair Stations . | . . Recycling Units . | . . Scanalyzers . | . . Garrison Access . | . . Total Hacks . | . . Successful . | . . Failed . | . . Catastrophic . | . . Database Lockouts . | . . Manual . | . . Terminals . | . . Fabricators . | . . Repair Stations . | . . Recycling Units . | . . Scanalyzers . | . . Garrison Access . | . . Terminal Hacks . | . . Fabricator Hacks . | . . Repair Station Hacks . | . . Recycling Unit Hacks . | . . Scanalyzer . | . . Garrison Access Hacks . | . . Unauthorized Hacks . | . . Terminals . | . . Fabricators . | . . Repair Stations . | . . Recycling Units . | . . Scanalyzers . | . . Garrison Access . | . . Data Cores Recovered . | . . Used . | . . Hacking Detections . | . . Full Trace Events . | . . Feedback Events . | . . Feedback Blocked . | . . Robot Schematics Acquired . | . . Robots Built . | . . Authchips . | . . Time . | . . Total Robot Build Rating . | . . Part Schematics Acquired . | . . Parts Built . | . . Authchips . | . . Time . | . . Total Part Build Rating . | . . Parts Repaired . | . . Time . | . . Parts Recycled . | . . Recycled Matter . | . . Retrieved Matter . | . . Retrieved Components . | . . Parts Scanalyzed . | . . Part Schematics Acquired . | . . Parts Damaged . | . . Bothacking | -11 -10 ------------ Run | Yrd Mat Used RIF Installer . | . . Robots Hacked . | . . Non-combat . | . . Combat . | . . Robot Hacks Applied . | . . Relay Couplers Released . | . . Fabnet Peak Effective % . | . . Robots Rewired . | . . Allies Hacked . | . . Hacks Repelled . | . . Allies | -11 -10 -------- Run | Yrd Mat Total Allies . | . . Largest Group . | . . Highest-Rated Group . | . . Highest-Rated Ally . | . . Total Orders . | . . Ally Attacks . | . . Total Damage . | . . Kills . | . . Allies Corrupted . | . . Allies Melted . | . . Intel | -11 -10 ------- Run | Yrd Mat Robot Analysis Total . | . . Derelict Logs Recovered . | . . Drone Launches . | . . Drone Recoveries . | . . Exploration | -11 -10 ------------- Run | Yrd Mat Turns Passed 341 | 100 241 Spaces Moved 228 | 74 154 Core 113 | 26 87 Treads . | . . Legs 101 | 48 53 Wheels 14 | . 14 Hover . | . . Flight . | . . Fastest Speed 50 | 50 50 Average Speed 107 | 95 113 Slowest Speed 150 | 120 150 Overloaded Moves . | . . Propulsion Burnouts . | . . Robots Hopped . | . . Cave-ins Triggered . | . . Exploration Rate (%) 20 | 7 33 Regions Visited 1 Branch Regions . Pre-discovered Areas . | . . Known Exits Taken . | . . Unknown Exits Taken 1 | 1 . Scrap Searched . | . . Spaces Dug . | . . Terrain Destroyed . | . . Melee . | . . Projectile . | . . AOE . | . . Terrain Rammed . | . . Walls Destroyed . | . . Machines Disabled . | . . Actions | -11 -10 --------- Run | Yrd Mat Total 272 | 91 181 Wait . | . . Move 227 | 73 154 Hop . | . . Pick Up 9 | 7 2 Fast Attach . | . . Attach 9 | 5 4 Detach . | . . Swap . | . . Drop . | . . Fire 27 | 6 21 Melee . | . . Ram . | . . Kick . | . . Crush . | . . Escape Stasis . | . . Rewire . | . . Trap . | . . Miscellaneous . | . . Route ------- -11/Scrapyard -10/Materials History --------- Turn | Location | Event 2 | -11/Scrapyard | Met Revision 17 78 | -11/Scrapyard | Discovered new exit (range 8) 101 | -11/Scrapyard | Entered Materials 244 | -10/Materials | Lost 3 parts (1p2n) 297 | -10/Materials | Core integrity fell below 50% 308 | -10/Materials | Build established: Mutant 328 | -10/Materials | Core integrity fell below 20% 342 | -10/Materials | Destroyed by G-34 Mercenary with Small Laser Last Messages --------------- support, which slows movement; see status page ('s') or the top of the parts list for the specific mass vs. support values. K-01 Serf collects debris. Acquired Lrg. Matter Pod. K-01 Serf collects debris. T-07 Excavator is excavating. Med. Laser destroyed. You may prefer to play using a different font style. Try some of the others via the option menu's second option. S-10 Pest destroyed. Acquired 19 matter. Assault Rifle destroyed. Acquired Lgt. Ion Engine. Wheel destroyed. Lgt. Ion Engine destroyed. S-10 Pest destroyed. K-01 Serf collects debris. Wheel destroyed. Map ----- +----------------------------------------------------+ | ????????#? """ ??# + | | ????????#! """ ?# # | | ????????#? """ ?# ###################+###### ## | | ????????# # #?# # #???? | | ?????????? """ # #?# """ """ # #???? | | ?????????? """ + #?# """ """ # #???? | | ?????????? """ # #?# """ """ # #???? | | ????????# # #?# # #???? | | ????????########## ##########+##### #???? | | ????????????????# ####### #?# #???? | | ????????????????# ^ ### #???? | | ????????????????# T + ^ #???? | | ????????????????# ########+###???? | | ????????????????# ] ####### #??????# #?????? | | ????????????????# ###?????## ##???####+#####?? | | ????????????????# #????????# ###??# #?? | | ????????????????# #????????# # #??# """ #?? | | ????????????????# #????????# #??# """ #?? | | ????????????????# #????????# # #??# """ #?? | | ????????????????# ########## ###??# #?? | | ????????????????# # # #????# """ #?? | | ????????????????# # # #????# """ #?? | | ????????????????# # # #????# """ #?? | | ????????????????# #kg # #????# #?? | | ????????????????+ /g s # ##########+####?? | | ????????????????# #g %@ # #?? | | ????????????????# # # +?? | | ????????????????# # # #?? | | ????????????????+ # ## ####+#########?? | | ????????????????# ########### #?? ?????????? | | ????????????????# #?????????# #??"""?????????? | | ????????????????# #?????????# #? """ ????????? | | ????????????????# #?????????# #? """ ????????? | | ????????????????# #?????????# # ???????? | | ????????????????+ #?????????" ########???????? | | ????????????????# #?????????T #??????????????? | | ????????????????# ??????????" #??????????????? | | ????????????????# ??????????# #??????????????? | | ????????????????# ??????????# ???????????????? | | ????????????????? ??????????# ???????????????? | | ??????????????????????????????? ???????????????? | | ?????????????????????????????????????????????????? | | ?????????????????????????????????????????????????? | | ?????????????????????????????????????????????????? | | ?????????????????????????????????????????????????? | | ?????????????????????????????????????????????????? | | ?????????????????????????????????????????????????? | | ?????????????????????????????????????????????????? | | ?????????????????????????????????????????????????? | | ?????????????????????????????????????????????????? | +----------------------------------------------------+ Best States ------------- Heat Dissipation 25 Energy Generation 10 Energy Capacity 125 Matter Stores 284 Matter Capacity 450 Sight Range 16 Terrain Scan Density 10 Evasion (%) 55 Item Schematics ----------------- None Robot Schematics ------------------ None Fabricated ------------ Nothing Alien Tech Used ----------------- None Achievements -------------- None Challenges ------------ None Game ------ Seed MeleeAntimissileChip Manual? 0 Play Time 00:09:15 Cumulative 0.2 hours Start 2024.03.16 @ 02:07:14 End 2024.04.21 @ 23:01:03 Sessions 2 Manual Loads 0 Difficulty Rogue Special Mode None Game No. 2 Rogue 2 Adventurer 0 Explorer 0 Win Type - Total 0 Types 0/0/0/0/0/0/0/0/0 Lore% 0 Gallery% 1 Achievement% 1 Wizard Run 0 Options --------- Layout 1 ASCII 1 Keyboard 0 Movement Mouse Keybinds 0 Fullscreen 1 Font 24/Smallcaps Map View 50x35 Zoom Use 0% Tactical HUD 0 Map Filters NONE Filters NONE Steam 1 RUN: fa58efaf-1803-4d52-a765-1c6013488c78